Cogmind - Beta 14 @@@ ROGUE MODE // 2024.09.03 @ 15:14:01 Player: FreshFromage Result: Destroyed by C-57 Dissector with Dual-blade Saw Performance ------------- Evolutions (9) 4500 Regions Visited (12) 2400 Robots Destroyed (66) 330 Value Destroyed (1126) 1126 Prototype IDs (31) 620 Alien Tech Used (0) 0 Bonus (203) 203 TOTAL SCORE: 9179 Bonus ------- Aligned with FarCom 300 Friendly Fire -97 Cogmind --------- Core Integrity 0/1600 Matter 212/300 Energy 83/100 System Corruption 30% Temperature Cool (0) Movement Hovering (40) Location -1/Access Parts ------- > --- POWER (2) -------- (None) > --- PROPULSION (8) --- Cooled Linear Gravjet > --- UTILITY (13) ----- (None) > --- WEAPON (2) ------- (None) > --- INVENTORY (5) ---- Transmission Jammer Graphene Brace Advanced Force Field Peak State ------------ > --- POWER ------------ Light Quantum Reactor Light Quantum Reactor > --- PROPULSION ------- Improved Cesium-ion Thruster Nuclear Pulse Thruster Nuclear Pulse Thruster Nuclear Pulse Array Impulse Thruster Impulse Thruster Impulse Thruster > --- UTILITY ---------- Improved Cooling System Structural Scanner Enhanced Optical Array Improved Transmission Jammer Advanced ECM Suite Layered Light Armor Plating Graphene Brace Hacking Suite Hacking Suite Hacking Suite Hacking Suite Hacking Suite System Shield > --- WEAPON ----------- Mini Grenade Launcher Scythe > --- INVENTORY -------- Light Antimatter Reactor Nuclear Pulse Thruster Transmission Jammer Advanced Force Field Enhanced Nova Cannon [Rating: 123] Favorites ----------- Power Improved Ion Engine Engine Improved Ion Engine Power Core Light Nuclear Core Reactor Light Quantum Reactor Propulsion Nuclear Pulse Thruster Treads Light Treads Leg Aluminum Leg Hover Unit Cooled Linear Gravjet Flight Unit Nuclear Pulse Thruster Utility Hacking Suite Device Structural Scanner Storage Medium Storage Unit Processor Advanced Targeting Computer Hackware Hacking Suite Protection Layered Light Armor Plating Weapon Scythe Energy Gun Improved EM Shotgun Energy Cannon Enhanced Nova Cannon Ballistic Gun Light Assault Rifle Ballistic Cannon Flak Cannon Launcher Mini Grenade Launcher Impact Weapon Heavy Hammer Slashing Weapon Scythe Build | -11 -10 -10 -10 -9 -8 -7 -6 -5 -4 -3 -2 -1 ------- Run | Yrd Mat Min Exi Min Mat Fac Fac Fac Fac Res Res Acc Slots Evolved 18 | . . . . . 4 2 2 2 2 2 2 2 Power 1 | . . . . . . . . 1 . . . . Propulsion 6 | . . . . . 2 1 . 1 . 1 . 1 Utility 11 | . . . . . 2 1 2 . 2 1 2 1 Weapon . | . . . . . . . . . . . . . Parts Attached 96 | 6 7 . 1 3 25 9 7 4 7 3 9 15 Power 15 | 1 1 . . 1 3 1 . 1 2 . 2 3 Engine 6 | 1 1 . . 1 2 . . 1 . . . . Core 3 | . . . . . 1 1 . . 1 . . . Reactor 6 | . . . . . . . . . 1 . 2 3 Propulsion 26 | 2 3 . . . 7 1 4 2 2 1 . 4 Treads 4 | 2 2 . . . . . . . . . . . Leg 2 | . 1 . . . 1 . . . . . . . Wheel . | . . . . . . . . . . . . . Hover 1 | . . . . . . . . . . . . 1 Flight 19 | . . . . . 6 1 4 2 2 1 . 3 Utility 28 | 1 2 . . 1 6 5 3 1 2 1 2 4 Device 8 | . . . . . . . 3 . 2 . 1 2 Storage 6 | 1 1 . . . 4 . . . . . . . Processor 4 | . . . . . 2 1 . 1 . . . . Hackware 7 | . . . . . . 3 . . . 1 1 2 Protection 3 | . 1 . . 1 . 1 . . . . . . Artifact . | . . . . . . . . . . . . . Weapon 27 | 2 1 . 1 1 9 2 . . 1 1 5 4 Energy Gun 1 | . . . . . 1 . . . . . . . Energy Cannon 4 | . . . . . . . . . . . 3 1 Ballistic Gun 4 | 2 1 . 1 . . . . . . . . . Ballistic Cannon 4 | . . . . . 4 . . . . . . . Launcher 8 | . . . . . 2 1 . . 1 1 1 2 Special Weapon . | . . . . . . . . . . . . . Impact Weapon 3 | . . . . 1 2 . . . . . . . Slashing Weapon 3 | . . . . . . 1 . . . . 1 1 Piercing Weapon . | . . . . . . . . . . . . . Special Melee Weapon . | . . . . . . . . . . . . . Unidentified Prototypes 4 | . . . . . 3 . . . . . . 1 Parts Lost 36 | . 1 . . 2 7 1 . . . . . 25 Power 7 | . . . . 1 2 . . . . . . 4 Propulsion 13 | . 1 . . . 3 1 . . . . . 8 Utility 12 | . . . . 1 . . . . . . . 11 Weapon 4 | . . . . . 2 . . . . . . 2 Highest Loss Streak 20 | . 1 . . 2 3 1 . . . . . 20 To Critical Strikes . | . . . . . . . . . . . . . Average Slot Usage (%) 84 | . 93 100 92 81 68 80 88 88 89 91 91 86 Engine 6 | . 14 14 14 14 1 . . 5 . . . . Core 2 | . . . . . 6 7 6 5 5 4 . . Reactor 1 | . . . . . . . . . 4 4 7 7 Treads 8 | . 23 14 14 14 6 . . . . . . . Leg 5 | . 1 14 14 14 11 . . . . . . . Flight 13 | . . . . . 2 30 28 29 26 28 26 25 Device 5 | . . . . . . . 12 11 21 19 21 18 Storage 6 | . 14 14 14 14 8 . . . . . . . Processor 5 | . . . . . 8 17 6 5 5 4 4 3 Hackware 7 | . . . . . . 7 20 17 15 19 21 22 Protection 8 | . 11 14 14 10 9 7 6 5 5 4 4 3 Ballistic Gun 8 | . 28 28 20 11 . . . . . . . . Impact Weapon 1 | . . . . 2 5 1 . . . . . . Slashing Weapon 2 | . . . . . . 5 6 5 5 4 3 3 Peak Build Rating 123 | 6 9 10 24 24 21 33 53 66 85 93 115 123 Average Rating 40 | 4 7 9 16 21 15 28 42 64 79 90 105 109 On Entrance 39 | . 6 9 10 24 10 19 31 53 66 83 93 106 Naked Turns 28 | . . . . . . . . . . . . 28 Heaviest Build 100 | 13 21 21 28 28 100 13 15 20 31 31 54 45 Greatest Support 52 | 40 40 20 20 20 20 22 30 37 38 44 44 52 Greatest Overweight (x) 32 | . 6 1 1 1 32 . . . . . 1 . Average Overweight (x) . | . . 1 1 1 1 . . . . . . . Largest Inventory Capacity 25 | 8 10 10 10 10 25 5 5 5 5 5 5 5 Average Capacity 8 | 6 9 10 10 10 18 5 5 5 5 5 5 5 Most Carried 14 | 4 10 10 10 10 14 5 5 5 5 5 5 5 Average Carried 7 | 2 7 9 10 9 11 4 3 4 4 4 4 3 Final Capacity 10 | 8 10 10 10 10 5 5 5 5 5 5 5 5 Final Carried 10 | 3 10 10 10 9 5 5 4 5 5 4 5 3 Class Distribution -------------------- 54% | Mutant 18% | Hacker-Ninja 13% | Scavenger-Sprinter 11% | Wizard-Ninja Dominant Class ---------------- Mutant | -10/Materials Mutant | -10/Mines Mutant | -10/Exiles Mutant | -9/Mines Mutant | -8/Materials Scavenger-Sprinter | -7/Factory Hacker-Ninja | -6/Factory Hacker-Ninja | -5/Factory Hacker-Ninja | -4/Factory Hacker-Ninja | -3/Research Hacker-Ninja | -2/Research Wizard-Ninja | -1/Access Resources | -11 -10 -10 -10 -9 -8 -7 -6 -5 -4 -3 -2 -1 ----------- Run | Yrd Mat Min Exi Min Mat Fac Fac Fac Fac Res Res Acc Matter Collected 1675 | 231 316 . . 30 228 383 30 31 44 61 . 321 Remotely . | . . . . . . . . . . . . . Salvage Created 2296 | . 524 . . 419 346 523 40 31 44 61 . 308 Parts 126 | . 33 . . 9 20 30 2 3 2 3 . 24 Haulers Intercepted 2 | . 1 . . . . 1 . . . . . . Recyclers Shooed 9 | . 3 . . . 4 1 . . . . . 1 Parts Field Recycled . | . . . . . . . . . . . . . Retrieved Matter . | . . . . . . . . . . . . . Parts Self-Destructed . | . . . . . . . . . . . . . Prevented . | . . . . . . . . . . . . . Kills | -11 -10 -10 -10 -9 -8 -7 -6 -5 -4 -3 -2 -1 ------- Run | Yrd Mat Min Exi Min Mat Fac Fac Fac Fac Res Res Acc Combat Hostiles Destroyed 44 | . 9 . . 23 11 1 . . . . . . Guns 32 | . 9 . . 23 . . . . . . . . Cannons 2 | . . . . . 2 . . . . . . . AOE 9 | . . . . . 8 1 . . . . . . Classes Destroyed 13 | . 5 . . 1 4 2 . . . . . 1 Worker 7 | . . . . . 1 3 . . . . . 3 Builder 6 | . . . . . 1 4 . . . . . 1 Tunneler 3 | . . . . . . . . . . . . 3 Hauler 2 | . 1 . . . . 1 . . . . . . Recycler 10 | . 1 . . 1 3 4 . . . . . 1 Mechanic 3 | . . . . . . 1 . . 1 1 . . Operator 3 | . . . . . . 1 . . . 1 . 1 Watcher 7 | . 3 . . . 1 . 1 1 . . . 1 Swarmer 13 | . 3 . . 4 6 . . . . . . . Grunt 9 | . 6 . . . 3 . . . . . . . Sentry 1 | . . . . . 1 . . . . . . . Hunter 2 | . . . . . 1 1 . . . . . . Assembled 19 | . . . . 19 . . . . . . . . Best Kill Streak 17 | . 5 . . 17 5 3 1 1 1 1 . 3 Combat Bots Only 17 | . 2 . . 17 5 1 . . . . . . Max Kills in Single Turn 5 | . 1 . . 1 5 2 1 1 1 1 . 1 Gunslinging . | . . . . . . . . . . . . . Exploded 3 | . . . . . 3 1 . . . . . . Melee . | . . . . . . . . . . . . . Uniques/NPCs Destroyed . | . . . . . . . . . . . . . Combat | -11 -10 -10 -10 -9 -8 -7 -6 -5 -4 -3 -2 -1 -------- Run | Yrd Mat Min Exi Min Mat Fac Fac Fac Fac Res Res Acc Hostile Shots Fired 501 | . 49 . . 48 130 7 . 4 . . 16 247 Missed 212 | . 13 . . 17 52 5 . 2 . . 11 112 Damage Taken 5550 | . 548 . . 467 1183 109 . 36 . . 101 3106 Core 2336 | . 79 . . 82 446 68 . 18 . . 25 1618 Absorbed by Shields . | . . . . . . . . . . . . . Redirected to Shielding 45 | . . . . 11 34 . . . . . . . Core Remaining (%) 82 | 100 . . . 35 18 90 100 98 100 100 98 . Volleys Fired 123 | 3 55 . . . 29 2 . . 3 2 14 15 Largest 2 | 2 2 . . . 2 1 . . 1 1 1 1 Hottest 120 | 40 40 . . . 88 30 . . 30 30 120 120 Shots Fired 245 | 6 110 . . 52 40 2 . . 3 2 14 16 Gun 168 | 6 110 . . 52 . . . . . . . . Cannon 42 | . . . . . 31 . . . . . 9 2 Launcher 35 | . . . . . 9 2 . . 3 2 5 14 Special . | . . . . . . . . . . . . . Kinetic 199 | 6 110 . . 52 31 . . . . . . . Thermal 11 | . . . . . . . . . . . 9 2 Explosive 35 | . . . . . 9 2 . . 3 2 5 14 Electromagnetic . | . . . . . . . . . . . . . Robot Hit Streak 12 | 3 12 . . 8 11 . . . . . . . Robot Miss Streak 6 | 1 3 . . 3 6 . . . . . . 3 Penetration Max . | . . . . . . . . . . . . . Secondary Targets . | . . . . . . . . . . . . . Autonomous 53 | . . . . 53 . . . . . . . . Shots Hit Robots 198 | 4 72 . . 38 36 22 1 2 1 2 . 20 Core Hits 118 | 1 32 . . 24 36 11 1 1 2 1 . 9 Critical Kills . | . . . . . . . . . . . . . Critical Parts Destroyed 4 | . . . . . 2 2 . . . . . . Critical Strikes 7 | . . . . . 2 2 . . . . . 3 Smash 4 | . . . . . 2 2 . . . . . . Sever 3 | . . . . . . . . . . . . 3 Melee Attacks 151 | . . . . 4 7 43 5 13 6 2 4 67 Impact 24 | . . . . 4 7 13 . . . . . . Slashing 127 | . . . . . . 30 5 13 6 2 4 67 Piercing . | . . . . . . . . . . . . . Sneak Attacks 29 | . . . . . . 15 . . 1 2 . 11 Combat Hostiles . | . . . . . . . . . . . . . Follow-up Attacks . | . . . . . . . . . . . . . Damage Inflicted 6685 | 40 817 . . 1309 1319 1675 41 64 71 149 . 1200 Guns 1964 | 40 762 . . 1162 . . . . . . . . Cannons 534 | . . . . . 492 . . . . . . 42 Explosions 968 | . 40 . . . 690 227 . . 4 . . 7 Melee 3182 | . . . . 141 137 1448 41 64 67 149 . 1135 Ramming 37 | . 15 . . 6 . . . . . . . 16 Kinetic 2456 | 40 762 . . 1162 492 . . . . . . . Thermal 42 | . . . . . . . . . . . . 42 Explosive 968 | . 40 . . . 690 227 . . 4 . . 7 Electromagnetic . | . . . . . . . . . . . . . Impact 1088 | . . . . 141 137 810 . . . . . . Slashing 2094 | . . . . . . 638 41 64 67 149 . 1135 Piercing . | . . . . . . . . . . . . . Highest Corruption 30 | . . . . . . . . 2 . . 1 30 Average Corruption 11 | . . . . . . . . 2 . . 1 12 Corruption Purged . | . . . . . . . . . . . . . Corruption Blocked . | . . . . . . . . . . . . . Effects 9 | . . . . . . . . 1 . . . 8 Matter Fused 2 | . . . . . . . . . . . . 2 Data Loss (minor) 1 | . . . . . . . . . . . . 1 Data Loss (major) 1 | . . . . . . . . 1 . . . . Misfires 1 | . . . . . . . . . . . . 1 Misdirections 4 | . . . . . . . . . . . . 4 Overload Shots . | . . . . . . . . . . . . . Overflow Damage 757 | . . . . 3 121 390 . . . 42 . 201 Projectiles . | . . . . . . . . . . . . . Explosions 48 | . . . . . 38 10 . . . . . . Melee 709 | . . . . 3 83 380 . . . 42 . 201 Knockbacks 17 | . . . . 1 12 4 . . . . . . Impact 7 | . . . . 1 2 4 . . . . . . Kinetic 10 | . . . . . 10 . . . . . . . Secondary . | . . . . . . . . . . . . . Self-Inflicted Damage 322 | . 114 . . . 98 87 . . . . 4 19 Shots 8 | . 1 . . . 4 1 . . . . 1 1 Rammed 6 | . 2 . . 3 . . . . . . . 1 Targets Rammed 6 | . 2 . . 3 . . . . . . . 1 Kicked . | . . . . . . . . . . . . . Crushed . | . . . . . . . . . . . . . Highest Temperature 304 | . 30 . . 1 123 8 105 304 . . 114 108 Average Temperature 83 | . 9 . . 1 52 8 42 122 . . 59 37 Received Heat Transfer 735 | . 225 . . 60 261 9 . . . . . 180 Siege Activations . | . . . . . . . . . . . . . Robots Corrupted 5 | . . . . . 2 3 . . . . . . Combat Hostiles 1 | . . . . . 1 . . . . . . . Parts Fried 11 | . . . . . 3 8 . . . . . . Impact Corruptions 17 | . . . . 1 3 13 . . . . . . Robots Melted . | . . . . . . . . . . . . . Combat Hostiles . | . . . . . . . . . . . . . Parts Melted . | . . . . . . . . . . . . . Heat Transferred 37 | . . . . . . . . . . . . 37 Parts Sabotaged . | . . . . . . . . . . . . . Parts Stolen . | . . . . . . . . . . . . . Parts Stripped . | . . . . . . . . . . . . . Power Chain Reactions . | . . . . . . . . . . . . . Alert | -11 -10 -10 -10 -9 -8 -7 -6 -5 -4 -3 -2 -1 ------- Run | Yrd Mat Min Exi Min Mat Fac Fac Fac Fac Res Res Acc Peak Influence 640 | . 209 58 . 163 215 501 209 334 199 191 269 640 Initial 108 | . . 58 . . 4 91 108 30 74 104 107 86 Average 161 | . 64 58 . 30 61 334 147 188 92 136 179 405 Maximum Alert Level 2 | . 1 . . . 1 2 1 1 . . 1 2 Low Security (%) 67 | 100 99 100 . 100 94 11 92 45 100 100 59 6 Level 1 21 | . . . . . 5 55 7 54 . . 40 45 Level 2 11 | . . . . . . 32 . . . . . 48 Level 3 . | . . . . . . . . . . . . . Level 4 . | . . . . . . . . . . . . . Level 5 . | . . . . . . . . . . . . . High Security . | . . . . . . . . . . . . . Max Security . | . . . . . . . . . . . . . Squads Dispatched 21 | . 1 . . . 3 4 . 3 . . 4 6 Investigation 9 | . 1 . . . . 3 . 2 . . 1 2 Extermination 3 | . . . . . . . . 1 . . 1 1 Reinforcement 9 | . . . . . 3 1 . . . . 2 3 Assault . | . . . . . . . . . . . . . Garrison . | . . . . . . . . . . . . . Intercept . | . . . . . . . . . . . . . Searches Triggered 3 | . . . . . . . . . . . . 3 Construction Impeded 1 | . . . . . 1 . . . . . . . Haulers Reinforced 1 | . . . . . . 1 . . . . . . Active Scanning Responses . | . . . . . . . . . . . . . Cargo Convoy Interrupts . | . . . . . . . . . . . . . Stealth | -11 -10 -10 -10 -9 -8 -7 -6 -5 -4 -3 -2 -1 --------- Run | Yrd Mat Min Exi Min Mat Fac Fac Fac Fac Res Res Acc Distress Signals 15 | . 1 . . . 3 . 1 3 . . 3 4 Communications Jammed 2 | . . . . . . . . . . . . 2 Distress Signals 2 | . . . . . . . . . . . . 2 Times Spotted 189 | . 18 . . 23 20 7 3 11 4 1 17 85 Peak Tracking Total 20 | . 4 . . 6 5 5 3 5 2 1 4 20 Tactical Retreats 33 | . 2 . . 2 . 1 1 5 1 . 5 16 Traps | -11 -10 -10 -10 -9 -8 -7 -6 -5 -4 -3 -2 -1 ------- Run | Yrd Mat Min Exi Min Mat Fac Fac Fac Fac Res Res Acc Traps Triggered 4 | . 2 . . . . . . 1 . . . 1 Indirectly . | . . . . . . . . . . . . . Trap Hack Attempts . | . . . . . . . . . . . . . Triggered . | . . . . . . . . . . . . . Disarmed . | . . . . . . . . . . . . . Reprogrammed . | . . . . . . . . . . . . . Reused . | . . . . . . . . . . . . . Traps Extracted . | . . . . . . . . . . . . . Installed . | . . . . . . . . . . . . . Triggered . | . . . . . . . . . . . . . Machines | -11 -10 -10 -10 -9 -8 -7 -6 -5 -4 -3 -2 -1 ---------- Run | Yrd Mat Min Exi Min Mat Fac Fac Fac Fac Res Res Acc Machines Disabled 6 | . 2 . . . 1 2 . . . . . 1 Max in Single Turn 2 | . 2 . . . 1 2 . . . . . 1 Garrison Access 5 | . . . . . . 1 . 1 1 1 . 1 Machines Repaired . | . . . . . . . . . . . . . Machines Dismantled . | . . . . . . . . . . . . . Machines Sabotaged . | . . . . . . . . . . . . . Overloaded Fab Kills . | . . . . . . . . . . . . . Hacking | -11 -10 -10 -10 -9 -8 -7 -6 -5 -4 -3 -2 -1 --------- Run | Yrd Mat Min Exi Min Mat Fac Fac Fac Fac Res Res Acc Machines Accessed 45 | . 7 . 1 . 4 10 6 4 2 3 3 5 Terminals 32 | . 6 . . . 4 5 5 2 1 2 3 4 Fabricators 4 | . . . . . . 3 . 1 . . . . Repair Stations 1 | . . . . . . 1 . . . . . . Recycling Units 1 | . 1 . . . . . . . . . . . Scanalyzers 1 | . . . . . . . 1 . . . . . Garrison Access 5 | . . . . . . 1 . 1 1 1 . 1 Total Hacks 116 | . 25 . 1 . 15 21 18 10 3 6 7 10 Successful 57 | . 15 . 1 . 5 9 12 6 3 3 1 2 Failed 58 | . 9 . . . 10 12 6 4 . 3 6 8 Catastrophic 11 | . . . . . 2 2 . . . . 3 4 Database Lockouts 1 | . 1 . . . . . . . . . . . Manual 68 | . 16 . 1 . 14 7 9 6 1 3 7 4 Terminals 92 | . 24 . . . 15 11 16 5 2 5 7 7 Fabricators 9 | . . . . . . 7 . 2 . . . . Repair Stations 2 | . . . . . . 2 . . . . . . Recycling Units 1 | . 1 . . . . . . . . . . . Scanalyzers 2 | . . . . . . . 2 . . . . . Garrison Access 9 | . . . . . . 1 . 3 1 1 . 3 Terminal Hacks 29 | . 9 . 1 . 3 2 8 2 1 1 1 1 Part Schematic 3 | . . . . . 1 . 2 . . . . . Robot Analysis 5 | . 2 . . . 2 . 1 . . . . . Prototype ID Bank 2 | . 1 . . . . . 1 . . . . . Level Access Points 5 | . . . . . . . 1 1 1 1 1 . Branch Access Points 1 | . 1 . . . . . . . . . . . Terminal Index 1 | . . . . . . . . . . . . 1 Unreport Threat 2 | . 1 . . . . . 1 . . . . . Locate Traps 4 | . 2 . . . . 1 1 . . . . . Recall Investigation 1 | . . . . . . . . 1 . . . . Recall Reinforcements 1 | . . . . . . 1 . . . . . . Hauler Manifests 3 | . 2 . . . . . 1 . . . . . Derelict Proto ID Bank 1 | . . . 1 . . . . . . . . . Fabricator Hacks 5 | . . . . . . 3 . 2 . . . . Load Schematic 3 | . . . . . . 2 . 1 . . . . Build 2 | . . . . . . 1 . 1 . . . . Repair Station Hacks 1 | . . . . . . 1 . . . . . . Refit 1 | . . . . . . 1 . . . . . . Recycling Unit Hacks 1 | . 1 . . . . . . . . . . . Retrieve Components 1 | . 1 . . . . . . . . . . . Scanalyzer 2 | . . . . . . . 2 . . . . . Insert Component 1 | . . . . . . . 1 . . . . . Analyze 1 | . . . . . . . 1 . . . . . Garrison Access Hacks 2 | . . . . . . . . . 1 1 . . Seal Access 2 | . . . . . . . . . 1 1 . . Unauthorized Hacks 17 | . 5 . . . 2 3 2 2 1 1 . 1 Terminals 14 | . 5 . . . 2 2 2 1 1 1 . . Assimilate 1 | . . . . . . . . . . 1 . . Botnet 13 | . 5 . . . 2 2 2 1 1 . . . Fabricators . | . . . . . . . . . . . . . Repair Stations . | . . . . . . . . . . . . . Recycling Units . | . . . . . . . . . . . . . Scanalyzers . | . . . . . . . . . . . . . Garrison Access 3 | . . . . . . 1 . 1 . . . 1 Jam 3 | . . . . . . 1 . 1 . . . 1 Data Cores Recovered 1 | . . . . . . 1 . . . . . . Used 1 | . . . . . . 1 . . . . . . Hacking Detections 37 | . 5 . . . 4 9 5 3 1 2 3 5 Full Trace Events 5 | . . . . . . 2 . 1 . . 1 1 Feedback Events . | . . . . . . . . . . . . . Feedback Blocked . | . . . . . . . . . . . . . Robot Schematics Acquired . | . . . . . . . . . . . . . Robots Built . | . . . . . . . . . . . . . Authchips . | . . . . . . . . . . . . . Time . | . . . . . . . . . . . . . Total Robot Build Rating . | . . . . . . . . . . . . . Part Schematics Acquired 4 | . . . . . 1 . 3 . . . . . Parts Built 3 | . . . . . . 1 . 2 . . . . Authchips . | . . . . . . . . . . . . . Time 115 | . . . . . . 73 . 42 . . . . Total Part Build Rating 11 | . . . . . . 3 . 8 . . . . Parts Repaired . | . . . . . . . . . . . . . Time . | . . . . . . . . . . . . . Parts Recycled . | . . . . . . . . . . . . . Recycled Matter . | . . . . . . . . . . . . . Retrieved Matter . | . . . . . . . . . . . . . Retrieved Components 1 | . 1 . . . . . . . . . . . Parts Scanalyzed 1 | . . . . . . . 1 . . . . . Part Schematics Acquired 1 | . . . . . . . 1 . . . . . Parts Damaged 1 | . . . . . . . 1 . . . . . Bothacking | -11 -10 -10 -10 -9 -8 -7 -6 -5 -4 -3 -2 -1 ------------ Run | Yrd Mat Min Exi Min Mat Fac Fac Fac Fac Res Res Acc Used RIF Installer . | . . . . . . . . . . . . . Robots Hacked . | . . . . . . . . . . . . . Non-combat . | . . . . . . . . . . . . . Combat . | . . . . . . . . . . . . . Robot Hacks Applied . | . . . . . . . . . . . . . Relay Couplers Released . | . . . . . . . . . . . . . Fabnet Peak Effective % . | . . . . . . . . . . . . . Robots Rewired . | . . . . . . . . . . . . . Allies Hacked . | . . . . . . . . . . . . . Hacks Repelled . | . . . . . . . . . . . . . Allies | -11 -10 -10 -10 -9 -8 -7 -6 -5 -4 -3 -2 -1 -------- Run | Yrd Mat Min Exi Min Mat Fac Fac Fac Fac Res Res Acc Total Allies 1 | . . . . . . . . . . 1 . . Largest Group 1 | . . . . . . . . . . 1 . . Highest-Rated Group 26 | . . . . . . . . . . 26 . . Highest-Rated Ally 26 | . . . . . . . . . . 26 . . Total Orders . | . . . . . . . . . . . . . Ally Attacks . | . . . . . . . . . . . . . Total Damage . | . . . . . . . . . . . . . Kills . | . . . . . . . . . . . . . Allies Corrupted . | . . . . . . . . . . . . . Allies Melted . | . . . . . . . . . . . . . Intel | -11 -10 -10 -10 -9 -8 -7 -6 -5 -4 -3 -2 -1 ------- Run | Yrd Mat Min Exi Min Mat Fac Fac Fac Fac Res Res Acc Robot Analysis Total 5 | . 2 . . . 2 . 1 . . . . . Derelict Logs Recovered 1 | . . . . 1 . . . . . . . . Drone Launches . | . . . . . . . . . . . . . Drone Recoveries . | . . . . . . . . . . . . . Exploration | -11 -10 -10 -10 -9 -8 -7 -6 -5 -4 -3 -2 -1 ------------- Run | Yrd Mat Min Exi Min Mat Fac Fac Fac Fac Res Res Acc Turns Passed 7631 | 72 1155 172 530 1131 1125 1033 189 435 280 100 473 936 Spaces Moved 9281 | 34 523 72 218 455 460 1809 565 874 711 275 1297 1988 Core 74 | 3 1 . . . 9 . . . . . . 61 Treads 1391 | 31 522 72 218 455 93 . . . . . . . Legs 166 | . . . . . 166 . . . . . . . Wheels . | . . . . . . . . . . . . . Hover . | . . . . . . . . . . . . . Flight 7650 | . . . . . 192 1809 565 874 711 275 1297 1927 Fastest Speed 21 | 50 160 240 240 240 29 27 27 24 27 24 24 21 Average Speed 59 | 150 177 240 240 240 176 28 28 26 27 24 24 22 Slowest Speed 1650 | 160 350 240 240 240 1650 29 29 29 27 24 101 50 Overloaded Moves . | . . . . . . . . . . . . . Propulsion Burnouts . | . . . . . . . . . . . . . Robots Hopped 38 | . . . . . 2 4 . 7 5 2 13 5 Cave-ins Triggered . | . . . . . . . . . . . . . Exploration Rate (%) 35 | 3 84 13 60 93 40 32 18 19 23 9 34 37 Regions Visited 12 Branch Regions 3 Pre-discovered Areas . | . . . . . . . . . . . . . Known Exits Taken 6 | . 1 . . . . . 1 1 1 1 1 . Unknown Exits Taken 6 | 1 . 1 1 1 1 1 . . . . . . Scrap Searched . | . . . . . . . . . . . . . Spaces Dug 273 | . . . . . 1 18 2 10 30 19 50 143 Terrain Destroyed 455 | . 19 . . 51 34 60 2 10 38 19 70 152 Melee 47 | . . . . . 1 13 2 10 5 . 4 12 Projectile 61 | . . . . 51 . . . . . . 9 1 AOE 347 | . 19 . . . 33 47 . . 33 19 57 139 Terrain Rammed . | . . . . . . . . . . . . . Walls Destroyed . | . . . . . . . . . . . . . Machines Disabled . | . . . . . . . . . . . . . Actions | -11 -10 -10 -10 -9 -8 -7 -6 -5 -4 -3 -2 -1 --------- Run | Yrd Mat Min Exi Min Mat Fac Fac Fac Fac Res Res Acc Total 10929 | 47 651 73 226 484 712 2246 589 1046 783 302 1425 2345 Wait 1220 | 1 54 . 6 18 170 378 3 156 54 17 104 259 Move 9194 | 33 522 71 217 454 455 1800 564 859 700 270 1271 1978 Hop 37 | . . . . . 2 4 . 7 5 2 12 5 Pick Up 46 | 4 8 1 . 1 10 3 4 4 3 4 3 1 Fast Attach 36 | 5 4 . 1 1 15 5 1 1 . . . 3 Attach 34 | 1 1 . . 2 6 2 2 2 3 3 7 5 Detach 9 | . . . . . 1 1 . . 1 . 5 1 Swap 27 | . 2 . . . 5 2 4 1 4 . 2 7 Drop 46 | . 3 1 2 1 12 6 6 3 4 2 3 3 Fire 123 | 3 55 . . . 29 2 . . 3 2 14 15 Melee 151 | . . . . 4 7 43 5 13 6 2 4 67 Ram 1 | . . . . . . . . . . . . 1 Kick . | . . . . . . . . . . . . . Crush 5 | . 2 . . 3 . . . . . . . . Escape Stasis . | . . . . . . . . . . . . . Rewire . | . . . . . . . . . . . . . Trap . | . . . . . . . . . . . . . Miscellaneous . | . . . . . . . . . . . . . Route ------- -11/Scrapyard -10/Materials (discovered 2 exits: [*Mat] / *Min) -10/Mines -10/Exiles -9/Mines -8/Materials -7/Factory -6/Factory (discovered 4 exits: *Fac x4) -5/Factory (discovered 5 exits: *Fac x4 / [*Upp]) -4/Factory (discovered 4 exits: *Res x4) -3/Research (discovered 3 exits: *Res x3) -2/Research (discovered 3 exits: *Acc x3) -1/Access History --------- Turn | Location | Event 25 | -11/Scrapyard | Discovered new exit (range 15) 73 | -11/Scrapyard | Entered Materials 242 | -10/Materials | Discovered new exit (range 14) 319 | -10/Materials | Build established: Mutant 684 | -10/Materials | Discovered new exit (range 16) 697 | -10/Materials | Central database locked down 697 | -10/Materials | Identified exit to Mines 1228 | -10/Materials | Entered Mines 1279 | -10/Mines | Found a damaged Exp. Sensor Array with a note attached 1310 | -10/Mines | Deemed a non-threat by the Exiles lab entrance 1310 | -10/Mines | Discovered new exit (range 5) 1366 | -10/Mines | Found Prototype Device 1400 | -10/Mines | Entered Exiles 1456 | -10/Exiles | Met 8R-AWN 1501 | -10/Exiles | Met EX-HEX 1568 | -10/Exiles | Met EX-BIN 1595 | -10/Exiles | Aligned with FarCom system 1597 | -10/Exiles | Given EX-Vault access code 1652 | -10/Exiles | Opened EX-Vault 1670 | -10/Exiles | Found AWS/Gauss 1717 | -10/Exiles | Warned to stay clear of 0b10 Research branches 1752 | -10/Exiles | Exiles lab attacked by MAIN.C 1911 | -10/Exiles | Discovered new exit (range 10) 1930 | -10/Exiles | Left Exiles lab with AWS/Gauss 1930 | -10/Exiles | Entered Mines 1937 | -9/Mines | Received a Rocket Launcher from a helpful Derelict 2344 | -9/Mines | Assembled infested the area 2450 | -9/Mines | Destroyed 17 combat bots 2747 | -9/Mines | AWS/Gauss suddenly broke down 2830 | -9/Mines | Learned Materials trap positions 2862 | -9/Mines | Core integrity fell below 50% 3004 | -9/Mines | Discovered new exit (range 7) 3061 | -9/Mines | Entered Materials 3061 | -8/Materials | Evolved 4 slots: Propulsion x2, Utility x2 3062 | -8/Materials | Loaded intel: 13 trap records 4085 | -8/Materials | Core integrity fell below 50% 4103 | -8/Materials | Core integrity fell below 20% 4130 | -8/Materials | Lost 3 parts (1p1n1w) 4183 | -8/Materials | Discovered new exit (range 3) 4186 | -8/Materials | Entered Factory 4186 | -7/Factory | Evolved 2 slots: Propulsion x1, Utility x1 4393 | -7/Factory | Discovered new exit (range 16) 4404 | -7/Factory | Build established: Scavenger-Sprinter 4646 | -7/Factory | Fabricated Hacking Suite? 5219 | -7/Factory | Entered another Factory area 5219 | -6/Factory | Evolved 2 slots: Utility x2 5254 | -6/Factory | Identified exit to Factory 5408 | -6/Factory | Entered another Factory area 5408 | -5/Factory | Evolved 2 slots: Power x1, Propulsion x1 5460 | -5/Factory | Identified exit to Factory 5517 | -5/Factory | Spotted B-75 Beast 5527 | -5/Factory | Discovered new exit (range 19) 5530 | -5/Factory | Build established: Hacker-Ninja 5581 | -5/Factory | Fabricated Transmission Jammer? 5843 | -5/Factory | Entered another Factory area 5843 | -4/Factory | Evolved 2 slots: Utility x2 6099 | -4/Factory | Identified exit to Research 6123 | -4/Factory | Entered Research 6123 | -3/Research | Evolved 2 slots: Propulsion x1, Utility x1 6191 | -3/Research | Identified exit to Research 6223 | -3/Research | Entered another Research area 6223 | -2/Research | Evolved 2 slots: Utility x2 6323 | -2/Research | Spotted B-90 Cyclops 6401 | -2/Research | Spotted B-90 Cyclops 6655 | -2/Research | Identified exit to Access 6696 | -2/Research | Entered Access 6696 | -1/Access | Evolved 2 slots: Propulsion x1, Utility x1 6946 | -1/Access | Search patrols dispatched 6968 | -1/Access | Build established: Wizard-Ninja 7196 | -1/Access | Search patrols dispatched 7359 | -1/Access | Spotted B-99 Colossus 7446 | -1/Access | Search patrols dispatched 7521 | -1/Access | Spotted B-99 Colossus 7551 | -1/Access | System corruption reached 10% 7585 | -1/Access | Lost 20 parts (3p6n10u1w) 7599 | -1/Access | Core integrity fell below 50% 7599 | -1/Access | System corruption reached 30% 7614 | -1/Access | Core integrity fell below 20% 7630 | -1/Access | Lost 4 parts (1p2n1u) 7632 | -1/Access | Destroyed by C-57 Dissector with Dual-blade Saw Last Messages --------------- 07597_ Knocked back. 07597_ S-43 Plague destroyed. 07598_ Lgt. Antimatter Reactor destroyed. 07598_ Nuclear Pulse Thruster destroyed. 07598_ Knocked back. 07598_ Imp. Hacking Suite destroyed. 07598_ System corrupted by crushing effect (+3). 07598_ Knocked back. 07598_ Penetrated by Slug. 07598_ Knocked back. 07599_ Imp. Cesium-ion Thruster destroyed. 07603_ Slammed into S-43 Plague. 07603_ System Shield severed. 07609_ System corrupted: Matter fused (-5). 07620_ Connecting with Terminal... 07620_ ALERT: Suspicious activity at Terminal A016. Dispatching Investigation squad. 07631_ System corrupted: Matter fused (-9). 07631_ Acquired Prototype Hover Unit. 07631_ Identified Cld. Linear Gravjet. Map ----- +----------------------------------------------------+ | ?????????????????????????????????????????????????? | | ?????????????????????????????????????????????????? | | ?????????????????????????????????????????????????? | | ?????????????????????????????????????????????????? | | ?????????????????????????????????????????????????? | | ?????????????????????????????????????????????????? | | ?????????????????????????????????????????????????? | | ?????????????????????????????????????????????????? | | ?????????????????????????????????????????????????? | | ?????????????????????????????????????????????????? | | ?????????????????????????????????????????????????? | | ????????????#????????????????????????????????????? | | ???????????? ????????????????????????????????????? | | ???????????? ????????????????????????????????????? | | ???????????? ????????????????????????????????????? | | ???????????? ????????????????????????????????????? | | ???????????? ????????????????????????????????????? | | ???????????? ????#####+####??????????????????????? | | ???????????# #???# #??????????????????????? | | ???????????# #???# #??????????????????????? | | ??????????# ???# """ #??????????????????????? | | ??????????# ?c?+ """ #??????????????????????? | | #?????????? ???# "" #??????????????????????? | | #??????????# #???# F"" +??????????????????????? | | #??????????# ##### """ #??????????????????????? | | #??????????# + sc c@#??????????????????????? | | #??????????# ##### #??????????????????????? | | #??????????# #???##########??????????????????????? | | #??????????# #???????????????????????????????????? | | #??????????# #???????????????????????????????????? | | #??????????# #???????????????????????????????????? | | #????????### #####???????????????????????????????? | | #????????# #???????????????????????????????? | | ########## #???????????????????????????????? | | "" #???????????????????????????????? | | T" #???????????????????????????????? | | #???????????????????????????????? | | #######+## #???????????????????????????????? | | #????????# #???????????????????????????????? | | ?????????### ###???????????????????????????????? | | ???????????# #?????????????????????????????????? | | ???????????# #?????????????????????????????????? | | ???????????? #?????????????????????????????????? | | ???????????? #?????????????????????????????????? | | ???????????? ?????????????????????????????????? | | ???????????? ????????????????????????????????? | | ???????????? ????????????????????????????????? | | ????????????? ???????????????????????????????? | | ????????????? ???????????????????????????????? | | ?????????????+##?????????????????????????????????? | +----------------------------------------------------+ Best States ------------- Heat Dissipation 79 Energy Generation 45 Energy Capacity 280 Matter Stores 300 Matter Capacity 300 Sight Range 22 Terrain Scan Density 10 ECM Strength 2 Jamming Range 14 Corruption Block 8 Armor Coverage 150 Power Shielding 33 Evasion (%) 65 Targeting Accuracy 8 Recoil Reduction 2 Offensive Hacking 52 Defensive Hacking 10 Item Schematics ----------------- Hacking Suite | -8/Materials | Hacked Adv. Hacking Suite | -6/Factory | Hacked Nuclear Pulse Thruster | -6/Factory | Scanalyzed Transmission Jammer | -6/Factory | Hacked Robot Schematics ------------------ None Fabricated ------------ Hacking Suite | x1 | -7/Factory Transmission Jammer | x2 | -5/Factory Alien Tech Used ----------------- None Achievements -------------- Exterminator No Signal Challenges ------------ None Game ------ Seed HypervelocityLaserPerforator Manual? 0 Play Time 02:07:00 Cumulative 66.9 hours Start 2024.09.03 @ 13:05:50 End 2024.09.03 @ 15:14:01 Sessions 1 Manual Loads 0 Difficulty Rogue Special Mode None Game No. 29 Rogue 29 Adventurer 0 Explorer 0 Win Type - Total 1 Types 1/0/0/0/0/0/0/0/0 Lore% 28 Gallery% 37 Achievement% 36 Wizard Run 0 Options --------- Layout 1 ASCII 0 Keyboard 0 Movement Vi Keybinds 0 Fullscreen 1 Font 24/Smallcaps Map View 50x35 Zoom Use 0% Tactical HUD 1 Map Filters NONE Filters NONE Steam 1 RUN: 8690d5dc-9c37-4cf6-a860-a1afcfc47bd1